[Event "Titled Tuesday Blitz March 21 Late 2023"]
[White "Bolanos, Fernando"]
[Black "Ozates, Tuna"]
[WhiteFideId "3304094"]
[BlackFideId "6354521"]
[WhiteElo "2166"]
[BlackElo "2151"]
[Result "1-0"]
[Round "06"]
[TimeControl "180+2"]
[Date "2023.03.21"]
[WhiteClock "0:00:52"]
[BlackClock "0:00:05"]

1. e4 {[%clk 0:03:00]}  c5 {[%clk 0:02:56]} 2. Nf3 {[%clk 0:03:00]}  Nc6 {[%clk 0:02:55]} 3. d4 {[%clk 0:02:53]}  cxd4 {[%clk 0:02:55]} 4. Nxd4 {[%clk 0:02:54]}  e5 {[%clk 0:02:54]} 5. Nb5 {[%clk 0:02:53]}  d6 {[%clk 0:02:54]} 6. c4 {[%clk 0:02:53]}  Be6 {[%clk 0:02:54]} 7. Be3 {[%clk 0:02:51]}  a6 {[%clk 0:02:49]} 8. N5c3 {[%clk 0:02:51]}  g6 {[%clk 0:02:50]} 9. Na3 {[%clk 0:02:50]}  Bg7 {[%clk 0:02:49]} 10. Nc2 {[%clk 0:02:50]}  Nge7 {[%clk 0:02:49]} 11. Be2 {[%clk 0:02:51]}  O-O {[%clk 0:02:50]} 12. O-O {[%clk 0:02:51]}  f5 {[%clk 0:02:49]} 13. f3 {[%clk 0:02:47]}  f4 {[%clk 0:02:48]} 14. Bf2 {[%clk 0:02:47]}  g5 {[%clk 0:02:48]} 15. b4 {[%clk 0:02:44]}  Rc8 {[%clk 0:02:29]} 16. Qd2 {[%clk 0:02:44]}  Ng6 {[%clk 0:02:14]} 17. Rfd1 {[%clk 0:02:40]}  Qf6 {[%clk 0:02:13]} 18. Nd5 {[%clk 0:02:37]}  Qf7 {[%clk 0:02:11]} 19. b5 {[%clk 0:02:23]}  axb5 {[%clk 0:02:09]} 20. cxb5 {[%clk 0:02:24]}  Nce7 {[%clk 0:02:09]} 21. Ncb4 {[%clk 0:02:22]}  h5 {[%clk 0:02:04]} 22. Nxe7+ {[%clk 0:02:19]}  Nxe7 {[%clk 0:02:04]} 23. Qxd6 {[%clk 0:02:20]}  g4 {[%clk 0:01:58]} 24. Rac1 {[%clk 0:02:13]}  Rxc1 {[%clk 0:01:51]} 25. Rxc1 {[%clk 0:02:13]}  g3 {[%clk 0:01:40]} 26. hxg3 {[%clk 0:02:10]}  fxg3 {[%clk 0:01:40]} 27. Bxg3 {[%clk 0:02:03]}  Bh6 {[%clk 0:01:39]} 28. Rc7 {[%clk 0:02:01]}  Be3+ {[%clk 0:01:31]} 29. Kf1 {[%clk 0:01:46]}  Re8 {[%clk 0:01:16]} 30. Bh4 {[%clk 0:01:03]}  Nc8 {[%clk 0:00:40]} 31. Qxe5 {[%clk 0:01:02]}  Bd7 {[%clk 0:00:35]} 32. Qg3+ {[%clk 0:00:54]}  Kh8 {[%clk 0:00:32]} 33. Bc4 {[%clk 0:00:53]}  Qh7 {[%clk 0:00:05]} 34. Bf6+ {[%clk 0:00:52]} 1-0


[Site "https://www.chess.com"]

[Event "Titled Tuesday Blitz March 21 Late 2023"]
[White "Martic, Ivan"]
[Black "Bolourchifard, Farzad"]
[WhiteFideId "929301"]
[BlackFideId "12510084"]
[WhiteElo "2360"]
[BlackElo "2317"]
[Result "1-0"]
[Round "06"]
[TimeControl "180+2"]
[Date "2023.03.21"]
[WhiteClock "0:00:18"]
[BlackClock "0:00:03"]

1. d4 {[%clk 0:03:00]}  Nf6 {[%clk 0:02:59]} 2. Bg5 {[%clk 0:02:59]}  d5 {[%clk 0:02:59]} 3. Bxf6 {[%clk 0:02:58]}  gxf6 {[%clk 0:02:59]} 4. e3 {[%clk 0:02:57]}  e6 {[%clk 0:02:55]} 5. c4 {[%clk 0:02:55]}  c6 {[%clk 0:02:53]} 6. Nc3 {[%clk 0:02:55]}  Nd7 {[%clk 0:02:53]} 7. Nf3 {[%clk 0:02:47]}  Bg7 {[%clk 0:02:52]} 8. Be2 {[%clk 0:02:46]}  O-O {[%clk 0:02:51]} 9. O-O {[%clk 0:02:46]}  f5 {[%clk 0:02:51]} 10. g3 {[%clk 0:02:45]}  Kh8 {[%clk 0:02:50]} 11. Rc1 {[%clk 0:02:41]}  b6 {[%clk 0:02:47]} 12. cxd5 {[%clk 0:02:39]}  cxd5 {[%clk 0:02:48]} 13. Qa4 {[%clk 0:02:30]}  Bb7 {[%clk 0:02:46]} 14. Ba6 {[%clk 0:02:28]}  Rb8 {[%clk 0:02:04]} 15. Nb5 {[%clk 0:02:20]}  Nf6 {[%clk 0:02:01]} 16. Rc7 {[%clk 0:02:11]}  Bxa6 {[%clk 0:01:53]} 17. Qxa6 {[%clk 0:02:12]}  Rc8 {[%clk 0:01:44]} 18. Rfc1 {[%clk 0:02:11]}  Rxc7 {[%clk 0:01:33]} 19. Rxc7 {[%clk 0:02:12]}  Ne8 {[%clk 0:01:27]} 20. Rxa7 {[%clk 0:02:07]}  Nd6 {[%clk 0:01:27]} 21. Nxd6 {[%clk 0:01:37]}  Qxd6 {[%clk 0:01:28]} 22. Ng5 {[%clk 0:01:37]}  Kg8 {[%clk 0:01:20]} 23. Qb7 {[%clk 0:01:35]}  Qb8 {[%clk 0:00:47]} 24. Qd7 {[%clk 0:01:09]}  Qc8 {[%clk 0:00:45]} 25. Qe7 {[%clk 0:00:58]}  Qc1+ {[%clk 0:00:31]} 26. Kg2 {[%clk 0:00:57]}  Qb1 {[%clk 0:00:29]} 27. Nxf7 {[%clk 0:00:51]}  f4 {[%clk 0:00:22]} 28. Qxe6 {[%clk 0:00:42]}  f3+ {[%clk 0:00:20]} 29. Kh3 {[%clk 0:00:41]}  h6 {[%clk 0:00:05]} 30. Nxh6+ {[%clk 0:00:23]}  Kh7 {[%clk 0:00:05]} 31. Ng4 {[%clk 0:00:19]}  Rf5 {[%clk 0:00:05]} 32. Qh6+ {[%clk 0:00:17]}  Kg8 {[%clk 0:00:03]} 33. Qxg7# {[%clk 0:00:18]} 1-0


[Site "https://www.chess.com"]

[Event "Titled Tuesday Blitz March 21 Late 2023"]
[White "Matinian, Nikita"]
[Black "Ladan, Nicholas"]
[WhiteFideId "24129100"]
[BlackFideId "30918855"]
[WhiteElo "2422"]
[BlackElo "2167"]
[Result "1-0"]
[Round "06"]
[TimeControl "180+2"]
[Date "2023.03.21"]
[WhiteClock "0:00:36"]
[BlackClock "0:00:01"]

1. e4 {[%clk 0:02:40]}  e5 {[%clk 0:03:00]} 2. Nf3 {[%clk 0:02:39]}  Nc6 {[%clk 0:03:00]} 3. Bb5 {[%clk 0:02:40]}  a6 {[%clk 0:02:59]} 4. Ba4 {[%clk 0:02:41]}  g6 {[%clk 0:03:00]} 5. c3 {[%clk 0:02:40]}  Bg7 {[%clk 0:03:00]} 6. d4 {[%clk 0:02:41]}  b5 {[%clk 0:02:59]} 7. Bb3 {[%clk 0:02:41]}  exd4 {[%clk 0:02:58]} 8. cxd4 {[%clk 0:02:41]}  Na5 {[%clk 0:02:59]} 9. Nc3 {[%clk 0:02:27]}  Ne7 {[%clk 0:02:57]} 10. h4 {[%clk 0:02:26]}  h6 {[%clk 0:02:53]} 11. h5 {[%clk 0:02:22]}  g5 {[%clk 0:02:53]} 12. e5 {[%clk 0:02:16]}  Nxb3 {[%clk 0:02:51]} 13. Qxb3 {[%clk 0:02:14]}  Bb7 {[%clk 0:02:42]} 14. Bxg5 {[%clk 0:02:09]}  hxg5 {[%clk 0:02:35]} 15. Nxg5 {[%clk 0:02:10]}  Nd5 {[%clk 0:02:00]} 16. Nxf7 {[%clk 0:02:01]}  Kxf7 {[%clk 0:01:59]} 17. Nxd5 {[%clk 0:02:01]}  Ke8 {[%clk 0:01:48]} 18. f4 {[%clk 0:01:48]}  c6 {[%clk 0:01:14]} 19. Ne3 {[%clk 0:01:44]}  Bh6 {[%clk 0:01:11]} 20. Nf5 {[%clk 0:01:38]}  Qa5+ {[%clk 0:00:49]} 21. Ke2 {[%clk 0:01:34]}  Kd8 {[%clk 0:00:48]} 22. g3 {[%clk 0:01:02]}  Kc7 {[%clk 0:00:46]} 23. Qc3 {[%clk 0:01:02]}  Qxc3 {[%clk 0:00:34]} 24. bxc3 {[%clk 0:01:03]}  Raf8 {[%clk 0:00:33]} 25. Nxh6 {[%clk 0:01:01]}  Rxh6 {[%clk 0:00:33]} 26. Ke3 {[%clk 0:01:00]}  Rg8 {[%clk 0:00:28]} 27. Rag1 {[%clk 0:00:58]}  c5 {[%clk 0:00:23]} 28. Rh4 {[%clk 0:00:58]}  c4 {[%clk 0:00:20]} 29. g4 {[%clk 0:00:57]}  Rgh8 {[%clk 0:00:20]} 30. f5 {[%clk 0:00:56]}  Bd5 {[%clk 0:00:19]} 31. Kf4 {[%clk 0:00:56]}  a5 {[%clk 0:00:17]} 32. a3 {[%clk 0:00:52]}  d6 {[%clk 0:00:10]} 33. e6 {[%clk 0:00:50]}  Rf8 {[%clk 0:00:08]} 34. e7 {[%clk 0:00:45]}  Re8 {[%clk 0:00:07]} 35. g5 {[%clk 0:00:46]}  Rh7 {[%clk 0:00:05]} 36. f6 {[%clk 0:00:45]}  Bf7 {[%clk 0:00:06]} 37. g6 {[%clk 0:00:43]}  Bxg6 {[%clk 0:00:06]} 38. Rxg6 {[%clk 0:00:43]}  b4 {[%clk 0:00:07]} 39. axb4 {[%clk 0:00:40]}  axb4 {[%clk 0:00:08]} 40. cxb4 {[%clk 0:00:40]}  Kd7 {[%clk 0:00:08]} 41. Kg5 {[%clk 0:00:39]}  c3 {[%clk 0:00:08]} 42. Rh2 {[%clk 0:00:38]}  Rc8 {[%clk 0:00:07]} 43. Rc2 {[%clk 0:00:37]}  Rc4 {[%clk 0:00:04]} 44. Rg8 {[%clk 0:00:37]}  Rxd4 {[%clk 0:00:01]} 45. e8=Q+ {[%clk 0:00:36]} 1-0


[Site "https://www.chess.com"]

[Event "Titled Tuesday Blitz March 21 Late 2023"]
[White "Shohat, Yotam"]
[Black "Ozer, Omer Faruk"]
[WhiteFideId "2813955"]
[BlackFideId "6354564"]
[WhiteElo "2226"]
[BlackElo "2260"]
[Result "1-0"]
[Round "06"]
[TimeControl "180+2"]
[Date "2023.03.21"]
[WhiteClock "0:00:47"]
[BlackClock "0:00:26"]

1. e4 {[%clk 0:03:00]}  c5 {[%clk 0:02:59]} 2. Nf3 {[%clk 0:02:56]}  e6 {[%clk 0:02:59]} 3. d4 {[%clk 0:02:55]}  cxd4 {[%clk 0:03:00]} 4. Nxd4 {[%clk 0:02:56]}  Nf6 {[%clk 0:03:01]} 5. Nc3 {[%clk 0:02:56]}  Nc6 {[%clk 0:03:01]} 6. Nxc6 {[%clk 0:02:55]}  bxc6 {[%clk 0:03:01]} 7. e5 {[%clk 0:02:56]}  Nd5 {[%clk 0:03:02]} 8. Ne4 {[%clk 0:02:56]}  Qc7 {[%clk 0:03:01]} 9. f4 {[%clk 0:02:57]}  Rb8 {[%clk 0:03:01]} 10. c4 {[%clk 0:02:54]}  Bb4+ {[%clk 0:03:02]} 11. Ke2 {[%clk 0:02:55]}  O-O {[%clk 0:03:02]} 12. cxd5 {[%clk 0:02:54]}  cxd5 {[%clk 0:03:02]} 13. Ng5 {[%clk 0:02:55]}  f6 {[%clk 0:02:59]} 14. exf6 {[%clk 0:02:50]}  Rxf6 {[%clk 0:03:00]} 15. Qd3 {[%clk 0:02:41]}  g6 {[%clk 0:02:38]} 16. Kd1 {[%clk 0:02:09]}  Bb7 {[%clk 0:01:23]} 17. Qd4 {[%clk 0:02:05]}  Be7 {[%clk 0:01:21]} 18. Bd2 {[%clk 0:01:57]}  Bc6 {[%clk 0:01:09]} 19. Bd3 {[%clk 0:01:49]}  d6 {[%clk 0:01:08]} 20. Bc3 {[%clk 0:01:41]}  Rbf8 {[%clk 0:00:58]} 21. Nxe6 {[%clk 0:01:38]}  Qd7 {[%clk 0:00:49]} 22. Nxf8 {[%clk 0:01:35]}  Qg4+ {[%clk 0:00:49]} 23. Kc2 {[%clk 0:01:13]}  Qxg2+ {[%clk 0:00:48]} 24. Kb3 {[%clk 0:01:14]}  Kxf8 {[%clk 0:00:44]} 25. Rhe1 {[%clk 0:01:11]}  Bd8 {[%clk 0:00:37]} 26. Re2 {[%clk 0:01:01]}  Qh3 {[%clk 0:00:35]} 27. Rae1 {[%clk 0:00:56]}  Qc8 {[%clk 0:00:33]} 28. a3 {[%clk 0:00:52]}  Bd7 {[%clk 0:00:26]} 29. Ka2 {[%clk 0:00:47]} 1-0


[Site "https://www.chess.com"]

[Event "Titled Tuesday Blitz March 21 Late 2023"]
[White "Roberson, Peter T"]
[Black "Zhurbinsky, David"]
[WhiteFideId "412384"]
[BlackFideId "2072904"]
[WhiteElo "2346"]
[BlackElo "2616"]
[Result "1-0"]
[Round "06"]
[TimeControl "180+2"]
[Date "2023.03.21"]
[WhiteClock "0:00:22"]
[BlackClock "0:00:09"]

1. Nf3 {[%clk 0:03:00]}  Nf6 {[%clk 0:03:00]} 2. g3 {[%clk 0:03:01]}  d5 {[%clk 0:02:59]} 3. Bg2 {[%clk 0:03:01]}  c5 {[%clk 0:02:59]} 4. O-O {[%clk 0:03:01]}  Nc6 {[%clk 0:02:59]} 5. d3 {[%clk 0:03:02]}  d4 {[%clk 0:02:59]} 6. e4 {[%clk 0:02:57]}  e5 {[%clk 0:02:53]} 7. Nfd2 {[%clk 0:02:49]}  Bd6 {[%clk 0:02:48]} 8. h3 {[%clk 0:02:41]}  Bc7 {[%clk 0:02:41]} 9. f4 {[%clk 0:02:41]}  Bd7 {[%clk 0:02:13]} 10. Nf3 {[%clk 0:02:25]}  Qe7 {[%clk 0:02:10]} 11. Na3 {[%clk 0:02:19]}  O-O-O {[%clk 0:02:07]} 12. Nc4 {[%clk 0:02:15]}  exf4 {[%clk 0:01:53]} 13. Bxf4 {[%clk 0:02:07]}  Be6 {[%clk 0:01:47]} 14. Nce5 {[%clk 0:01:17]}  Nxe5 {[%clk 0:01:39]} 15. Bxe5 {[%clk 0:01:17]}  Nh5 {[%clk 0:01:30]} 16. Qe1 {[%clk 0:01:09]}  Bxe5 {[%clk 0:01:26]} 17. Nxe5 {[%clk 0:01:08]}  Qc7 {[%clk 0:01:27]} 18. g4 {[%clk 0:00:51]}  Qxe5 {[%clk 0:01:25]} 19. gxh5 {[%clk 0:00:51]}  Qxh5 {[%clk 0:01:25]} 20. Qg3 {[%clk 0:00:51]}  Qg6 {[%clk 0:01:17]} 21. Kh2 {[%clk 0:00:37]}  Qxg3+ {[%clk 0:01:11]} 22. Kxg3 {[%clk 0:00:38]}  Kc7 {[%clk 0:01:08]} 23. a3 {[%clk 0:00:38]}  b5 {[%clk 0:00:57]} 24. h4 {[%clk 0:00:39]}  c4 {[%clk 0:00:49]} 25. Bh3 {[%clk 0:00:38]}  Rhf8 {[%clk 0:00:43]} 26. a4 {[%clk 0:00:31]}  Bxh3 {[%clk 0:00:28]} 27. Kxh3 {[%clk 0:00:31]}  cxd3 {[%clk 0:00:27]} 28. cxd3 {[%clk 0:00:31]}  b4 {[%clk 0:00:26]} 29. Rf5 {[%clk 0:00:30]}  a6 {[%clk 0:00:24]} 30. Rc1+ {[%clk 0:00:26]}  Kb6 {[%clk 0:00:20]} 31. Rc4 {[%clk 0:00:27]}  g6 {[%clk 0:00:11]} 32. Rxb4+ {[%clk 0:00:24]}  Kc6 {[%clk 0:00:09]} 33. Rf6+ {[%clk 0:00:22]}  Kc5 {[%clk 0:00:09]} 34. Rc4# {[%clk 0:00:22]} 1-0


[Site "https://www.chess.com"]

[Event "Titled Tuesday Blitz March 21 Late 2023"]
[White "Thomforde-Toates, Noah"]
[Black "Ronka, Erik"]
[WhiteFideId "30951992"]
[BlackFideId "505080"]
[WhiteElo "2604"]
[BlackElo "2264"]
[Result "1-0"]
[Round "06"]
[TimeControl "180+2"]
[Date "2023.03.21"]
[WhiteClock "0:00:17"]
[BlackClock "0:00:02"]

1. e4 {[%clk 0:03:00]}  c6 {[%clk 0:02:59]} 2. d4 {[%clk 0:02:58]}  d5 {[%clk 0:03:00]} 3. e5 {[%clk 0:02:58]}  Bf5 {[%clk 0:03:00]} 4. h4 {[%clk 0:02:59]}  h5 {[%clk 0:03:00]} 5. Bd3 {[%clk 0:02:58]}  Bxd3 {[%clk 0:03:00]} 6. Qxd3 {[%clk 0:02:59]}  e6 {[%clk 0:03:01]} 7. Bg5 {[%clk 0:02:58]}  Qa5+ {[%clk 0:02:59]} 8. Nd2 {[%clk 0:02:57]}  c5 {[%clk 0:02:54]} 9. c4 {[%clk 0:02:46]}  dxc4 {[%clk 0:02:50]} 10. Qxc4 {[%clk 0:02:44]}  Nc6 {[%clk 0:02:49]} 11. Nf3 {[%clk 0:02:40]}  cxd4 {[%clk 0:01:48]} 12. O-O {[%clk 0:02:37]}  Qb4 {[%clk 0:01:43]} 13. Qd3 {[%clk 0:02:29]}  Nge7 {[%clk 0:01:40]} 14. a3 {[%clk 0:02:27]}  Qa5 {[%clk 0:01:25]} 15. b4 {[%clk 0:02:27]}  Qd5 {[%clk 0:01:08]} 16. Rac1 {[%clk 0:02:17]}  Nf5 {[%clk 0:01:04]} 17. b5 {[%clk 0:02:12]}  Nxe5 {[%clk 0:01:03]} 18. Nxe5 {[%clk 0:02:13]}  Qxe5 {[%clk 0:01:04]} 19. Rfe1 {[%clk 0:02:12]}  Qd5 {[%clk 0:01:01]} 20. Nf3 {[%clk 0:02:04]}  Bd6 {[%clk 0:00:57]} 21. Rcd1 {[%clk 0:01:31]}  f6 {[%clk 0:00:44]} 22. Bc1 {[%clk 0:01:16]}  Bc5 {[%clk 0:00:40]} 23. Rxe6+ {[%clk 0:01:04]}  Qxe6 {[%clk 0:00:38]} 24. Re1 {[%clk 0:01:04]}  Ne3 {[%clk 0:00:19]} 25. fxe3 {[%clk 0:01:01]}  O-O {[%clk 0:00:19]} 26. exd4 {[%clk 0:01:00]}  Qd5 {[%clk 0:00:19]} 27. Qg6 {[%clk 0:00:58]}  Bxd4+ {[%clk 0:00:18]} 28. Kh1 {[%clk 0:00:53]}  Bc3 {[%clk 0:00:18]} 29. Re7 {[%clk 0:00:32]}  Rf7 {[%clk 0:00:18]} 30. Rxf7 {[%clk 0:00:32]}  Qxf7 {[%clk 0:00:18]} 31. Qe4 {[%clk 0:00:33]}  Re8 {[%clk 0:00:17]} 32. Qc2 {[%clk 0:00:33]}  Be5 {[%clk 0:00:17]} 33. a4 {[%clk 0:00:31]}  Bc7 {[%clk 0:00:16]} 34. Ba3 {[%clk 0:00:27]}  Qd7 {[%clk 0:00:16]} 35. Bc5 {[%clk 0:00:26]}  Bb8 {[%clk 0:00:11]} 36. Bf2 {[%clk 0:00:26]}  Qc7 {[%clk 0:00:11]} 37. Qg6 {[%clk 0:00:24]}  Qf7 {[%clk 0:00:11]} 38. Qd3 {[%clk 0:00:23]}  Qe7 {[%clk 0:00:08]} 39. Qd5+ {[%clk 0:00:23]}  Qe6 {[%clk 0:00:08]} 40. Qxb7 {[%clk 0:00:22]}  Kh7 {[%clk 0:00:08]} 41. Bxa7 {[%clk 0:00:19]}  Bxa7 {[%clk 0:00:06]} 42. Qxa7 {[%clk 0:00:20]}  Qg4 {[%clk 0:00:04]} 43. Qc5 {[%clk 0:00:19]}  Re2 {[%clk 0:00:04]} 44. Qg1 {[%clk 0:00:17]}  Qxa4 {[%clk 0:00:02]} 45. Qb1+ {[%clk 0:00:17]}  Kh6 {[%clk 0:00:02]} 46. Qc1+ {[%clk 0:00:17]} 1-0


[Site "https://www.chess.com"]

[Event "Titled Tuesday Blitz March 21 Late 2023"]
[White "Perez Rodriguez, Jennifer"]
[Black "Di Berardino, Diego Rafael"]
[WhiteFideId "3507831"]
[BlackFideId "2105446"]
[WhiteElo "2170"]
[BlackElo "2432"]
[Result "0-1"]
[Round "06"]
[TimeControl "180+2"]
[Date "2023.03.21"]
[WhiteClock "0:00:53"]
[BlackClock "0:00:05"]

1. e4 {[%clk 0:03:00]}  Nf6 {[%clk 0:02:59]} 2. Nc3 {[%clk 0:02:59]}  d5 {[%clk 0:02:57]} 3. exd5 {[%clk 0:02:59]}  Nxd5 {[%clk 0:02:57]} 4. Nxd5 {[%clk 0:03:00]}  Qxd5 {[%clk 0:02:57]} 5. d4 {[%clk 0:03:00]}  Nc6 {[%clk 0:02:53]} 6. Nf3 {[%clk 0:03:01]}  Bg4 {[%clk 0:02:52]} 7. Be2 {[%clk 0:03:01]}  O-O-O {[%clk 0:02:52]} 8. O-O {[%clk 0:03:02]}  e6 {[%clk 0:02:19]} 9. Be3 {[%clk 0:02:56]}  Bd6 {[%clk 0:02:11]} 10. c4 {[%clk 0:02:53]}  Qh5 {[%clk 0:02:06]} 11. h3 {[%clk 0:02:48]}  Bxh3 {[%clk 0:01:44]} 12. gxh3 {[%clk 0:02:46]}  Qxh3 {[%clk 0:01:43]} 13. c5 {[%clk 0:02:41]}  Bxc5 {[%clk 0:01:40]} 14. Ng5 {[%clk 0:02:41]}  Qh4 {[%clk 0:01:34]} 15. Nxf7 {[%clk 0:02:33]}  Nxd4 {[%clk 0:01:17]} 16. Bg5 {[%clk 0:02:10]}  Nxe2+ {[%clk 0:00:25]} 17. Qxe2 {[%clk 0:02:07]}  Qg3+ {[%clk 0:00:26]} 18. Kh1 {[%clk 0:02:06]}  Qh3+ {[%clk 0:00:26]} 19. Kg1 {[%clk 0:02:06]}  Rd4 {[%clk 0:00:22]} 20. Ne5 {[%clk 0:01:59]}  Bd6 {[%clk 0:00:08]} 21. f4 {[%clk 0:01:55]}  Bc5 {[%clk 0:00:06]} 22. Rf2 {[%clk 0:01:49]}  Rd5 {[%clk 0:00:06]} 23. Qf3 {[%clk 0:01:42]}  Bxf2+ {[%clk 0:00:05]} 24. Qxf2 {[%clk 0:01:43]}  h6 {[%clk 0:00:04]} 25. Be7 {[%clk 0:01:39]}  b6 {[%clk 0:00:03]} 26. Rc1 {[%clk 0:01:34]}  c5 {[%clk 0:00:03]} 27. Bh4 {[%clk 0:01:28]}  g5 {[%clk 0:00:03]} 28. Bg3 {[%clk 0:01:25]}  gxf4 {[%clk 0:00:03]} 29. Qxf4 {[%clk 0:01:26]}  Rg8 {[%clk 0:00:03]} 30. Rc3 {[%clk 0:01:11]}  Rd1+ {[%clk 0:00:03]} 31. Kf2 {[%clk 0:01:11]}  Rf1+ {[%clk 0:00:04]} 32. Ke3 {[%clk 0:01:12]}  Rxf4 {[%clk 0:00:05]} 33. Kxf4 {[%clk 0:01:12]}  Qf1+ {[%clk 0:00:04]} 34. Rf3 {[%clk 0:01:11]}  Qc1+ {[%clk 0:00:04]} 35. Re3 {[%clk 0:01:11]}  Qxb2 {[%clk 0:00:04]} 36. Kf3 {[%clk 0:01:05]}  Qc1 {[%clk 0:00:04]} 37. Nd3 {[%clk 0:00:55]}  Rxg3+ {[%clk 0:00:03]} 38. Kxg3 {[%clk 0:00:54]}  Qxe3+ {[%clk 0:00:04]} 39. Kg2 {[%clk 0:00:55]}  Qxd3 {[%clk 0:00:04]} 40. Kf2 {[%clk 0:00:53]}  c4 {[%clk 0:00:05]} 41. Ke1 {[%clk 0:00:53]}  c3 {[%clk 0:00:05]} 0-1


[Site "https://www.chess.com"]

[Event "Titled Tuesday Blitz March 21 Late 2023"]
[White "Drori, Saar"]
[Black "Guzman Moneo, Alberto"]
[WhiteFideId "2812444"]
[BlackFideId "2209616"]
[WhiteElo "2322"]
[BlackElo "2157"]
[Result "1-0"]
[Round "06"]
[TimeControl "180+2"]
[Date "2023.03.21"]
[WhiteClock "0:00:27"]
[BlackClock "0:00:07"]

1. e4 {[%clk 0:02:59]}  c5 {[%clk 0:02:59]} 2. Nc3 {[%clk 0:02:59]}  g6 {[%clk 0:02:55]} 3. g3 {[%clk 0:02:59]}  Nc6 {[%clk 0:02:53]} 4. Bg2 {[%clk 0:02:58]}  Rb8 {[%clk 0:02:53]} 5. d3 {[%clk 0:02:58]}  b5 {[%clk 0:02:53]} 6. Be3 {[%clk 0:02:59]}  b4 {[%clk 0:02:52]} 7. Nce2 {[%clk 0:02:59]}  d6 {[%clk 0:02:48]} 8. Qd2 {[%clk 0:02:59]}  Bg7 {[%clk 0:02:47]} 9. c3 {[%clk 0:02:59]}  a5 {[%clk 0:02:45]} 10. f4 {[%clk 0:02:57]}  a4 {[%clk 0:02:34]} 11. Nf3 {[%clk 0:02:53]}  a3 {[%clk 0:02:34]} 12. bxa3 {[%clk 0:02:51]}  bxc3 {[%clk 0:02:33]} 13. Nxc3 {[%clk 0:02:51]}  Qa5 {[%clk 0:02:29]} 14. Rc1 {[%clk 0:02:48]}  Qxa3 {[%clk 0:02:27]} 15. O-O {[%clk 0:02:29]}  Rb2 {[%clk 0:02:26]} 16. Qe1 {[%clk 0:02:27]}  Ba6 {[%clk 0:02:14]} 17. Rf2 {[%clk 0:02:20]}  Bxd3 {[%clk 0:01:50]} 18. e5 {[%clk 0:01:46]}  dxe5 {[%clk 0:01:30]} 19. Nxe5 {[%clk 0:01:37]}  Nxe5 {[%clk 0:01:30]} 20. fxe5 {[%clk 0:01:36]}  Rxf2 {[%clk 0:01:20]} 21. Bxf2 {[%clk 0:01:36]}  Bxe5 {[%clk 0:01:03]} 22. Nd5 {[%clk 0:01:32]}  c4 {[%clk 0:00:37]} 23. Nb6 {[%clk 0:00:34]}  Nf6 {[%clk 0:00:28]} 24. Nxc4 {[%clk 0:00:32]}  Bxc4 {[%clk 0:00:24]} 25. Rxc4 {[%clk 0:00:33]}  Nh5 {[%clk 0:00:07]} 26. Qxe5 {[%clk 0:00:27]} 1-0


[Site "https://www.chess.com"]

[Event "Titled Tuesday Blitz March 21 Late 2023"]
[White "Romero Ruscalleda, Josep"]
[Black "Rastbod, Ali"]
[WhiteFideId "2231859"]
[BlackFideId "12567477"]
[WhiteElo "2183"]
[BlackElo "2211"]
[Result "0-1"]
[Round "06"]
[TimeControl "180+2"]
[Date "2023.03.21"]
[WhiteClock "0:00:24"]
[BlackClock "0:00:33"]

1. e4 {[%clk 0:03:00]}  Nc6 {[%clk 0:02:54]} 2. d4 {[%clk 0:03:00]}  d5 {[%clk 0:02:46]} 3. exd5 {[%clk 0:02:57]}  Qxd5 {[%clk 0:02:40]} 4. Nf3 {[%clk 0:02:57]}  Bg4 {[%clk 0:02:40]} 5. Be2 {[%clk 0:02:57]}  e5 {[%clk 0:02:39]} 6. c4 {[%clk 0:02:38]}  Bb4+ {[%clk 0:02:36]} 7. Nc3 {[%clk 0:02:38]}  Qa5 {[%clk 0:02:35]} 8. d5 {[%clk 0:02:24]}  Bxf3 {[%clk 0:02:13]} 9. Bxf3 {[%clk 0:02:20]}  Nd4 {[%clk 0:02:12]} 10. Bd2 {[%clk 0:02:16]}  Qa6 {[%clk 0:02:01]} 11. Be2 {[%clk 0:02:07]}  Nf6 {[%clk 0:01:50]} 12. O-O {[%clk 0:02:05]}  O-O {[%clk 0:01:48]} 13. Re1 {[%clk 0:01:52]}  Rfe8 {[%clk 0:01:46]} 14. Bf1 {[%clk 0:01:42]}  Rad8 {[%clk 0:01:35]} 15. a3 {[%clk 0:01:37]}  Bxc3 {[%clk 0:01:34]} 16. Bxc3 {[%clk 0:01:29]}  c5 {[%clk 0:01:33]} 17. b4 {[%clk 0:01:19]}  b6 {[%clk 0:01:31]} 18. Bd3 {[%clk 0:01:06]}  Qc8 {[%clk 0:01:17]} 19. Rc1 {[%clk 0:00:58]}  h6 {[%clk 0:01:16]} 20. Bb1 {[%clk 0:00:52]}  Nd7 {[%clk 0:00:52]} 21. h3 {[%clk 0:00:47]}  cxb4 {[%clk 0:00:45]} 22. axb4 {[%clk 0:00:45]}  Qxc4 {[%clk 0:00:43]} 23. Rxe5 {[%clk 0:00:39]}  Nxe5 {[%clk 0:00:41]} 24. Bxd4 {[%clk 0:00:39]}  Qxd5 {[%clk 0:00:41]} 25. Qc2 {[%clk 0:00:37]}  Qxd4 {[%clk 0:00:37]} 26. Qh7+ {[%clk 0:00:37]}  Kf8 {[%clk 0:00:37]} 27. Rc7 {[%clk 0:00:37]}  Qd1+ {[%clk 0:00:32]} 28. Kh2 {[%clk 0:00:36]}  Nf3+ {[%clk 0:00:33]} 29. gxf3 {[%clk 0:00:25]}  Qd6+ {[%clk 0:00:33]} 30. Kg2 {[%clk 0:00:24]}  Qxc7 {[%clk 0:00:33]} 0-1


[Site "https://www.chess.com"]